[Event "*** Titled Tuesday Blitz"]
[Site "Chess.com"]
[Date "2020.05.05"]
[Round "9"]
[White "kuba2006"]
[Black "LivajaM"]
[Result "0-1"]
[WhiteElo "2416"]
[BlackElo "2290"]
[TimeControl "180+1"]
[EndTime "11:46:57 PDT"]
[Termination "LivajaM won on time"]

1. e4 {[%clk 0:03:00.9]} 1... c5 {[%clk 0:02:59.3]} 2. Nf3 {[%clk 0:03:00.4]}
2... Nc6 {[%clk 0:02:59.5]} 3. d4 {[%clk 0:03:00.9]} 3... cxd4 {[%clk 0:03:00]}
4. Nxd4 {[%clk 0:03:01.8]} 4... Qc7 {[%clk 0:03:00.5]} 5. Nc3 {[%clk 0:03:00.3]}
5... e6 {[%clk 0:03:01]} 6. Be3 {[%clk 0:02:50.6]} 6... a6 {[%clk 0:03:01.1]} 7.
f3 {[%clk 0:02:48.7]} 7... Nf6 {[%clk 0:03:00.6]} 8. Qd2 {[%clk 0:02:48.5]} 8...
Be7 {[%clk 0:03:00]} 9. O-O-O {[%clk 0:02:48.5]} 9... b5 {[%clk 0:03:00.2]} 10.
Kb1 {[%clk 0:02:48.7]} 10... Bb7 {[%clk 0:03:00.2]} 11. g4 {[%clk 0:02:48.1]}
11... d6 {[%clk 0:02:59.4]} 12. h4 {[%clk 0:02:46.3]} 12... Nd7 {[%clk
0:02:59.3]} 13. g5 {[%clk 0:02:27.5]} 13... Nde5 {[%clk 0:02:56.1]} 14. f4
{[%clk 0:02:11]} 14... Nc4 {[%clk 0:02:48.6]} 15. Bxc4 {[%clk 0:02:09.9]} 15...
bxc4 {[%clk 0:02:49.5]} 16. f5 {[%clk 0:02:06.6]} 16... Nxd4 {[%clk 0:02:45.3]}
17. Bxd4 {[%clk 0:02:02.8]} 17... e5 {[%clk 0:02:45.5]} 18. Be3 {[%clk
0:02:00.4]} 18... Rc8 {[%clk 0:02:32.8]} 19. f6 {[%clk 0:01:46.8]} 19... gxf6
{[%clk 0:02:32.2]} 20. gxf6 {[%clk 0:01:47.3]} 20... Bxf6 {[%clk 0:02:32.2]} 21.
Rdf1 {[%clk 0:01:45.1]} 21... Be7 {[%clk 0:02:30.7]} 22. Qf2 {[%clk 0:01:43.4]}
22... Bf8 {[%clk 0:02:27.4]} 23. Bg5 {[%clk 0:01:28.3]} 23... Qd7 {[%clk
0:02:23.7]} 24. Rh2 {[%clk 0:01:10.9]} 24... h6 {[%clk 0:02:21.8]} 25. Bf6
{[%clk 0:01:04.8]} 25... Rg8 {[%clk 0:02:21.8]} 26. Rg2 {[%clk 0:00:57.8]} 26...
Rxg2 {[%clk 0:02:16.9]} 27. Qxg2 {[%clk 0:00:58.7]} 27... Qe6 {[%clk 0:02:11]}
28. Qg8 {[%clk 0:00:43.4]} 28... Kd7 {[%clk 0:02:10.1]} 29. Qh7 {[%clk
0:00:22.4]} 29... Be7 {[%clk 0:02:08.1]} 30. Bxe7 {[%clk 0:00:19.2]} 30... Kxe7
{[%clk 0:02:07.9]} 31. Qg7 {[%clk 0:00:14.9]} 31... Qg6 {[%clk 0:02:05.3]} 32.
Qxg6 {[%clk 0:00:09]} 32... fxg6 {[%clk 0:02:05.5]} 33. Rg1 {[%clk 0:00:09.2]}
33... Rg8 {[%clk 0:02:03.6]} 34. Kc1 {[%clk 0:00:09.4]} 34... g5 {[%clk
0:02:03.8]} 35. hxg5 {[%clk 0:00:09.8]} 35... hxg5 {[%clk 0:02:04.7]} 36. Kd2
{[%clk 0:00:10]} 36... g4 {[%clk 0:02:05.1]} 37. Ke3 {[%clk 0:00:10.2]} 37...
Kf6 {[%clk 0:02:02.2]} 38. Ne2 {[%clk 0:00:09.4]} 38... Kg5 {[%clk 0:01:59.6]}
39. Ng3 {[%clk 0:00:09.4]} 39... Rh8 {[%clk 0:01:59.1]} 40. Nf5 {[%clk
0:00:07.4]} 40... Rh3+ {[%clk 0:01:58.3]} 41. Ng3 {[%clk 0:00:03.3]} 41... Kh4
{[%clk 0:01:56.4]} 42. Kf2 {[%clk 0:00:03.5]} 42... Rh2+ {[%clk 0:01:55.4]} 43.
Rg2 {[%clk 0:00:04]} 43... Rxg2+ {[%clk 0:01:53.2]} 44. Kxg2 {[%clk 0:00:04.9]}
44... Kg5 {[%clk 0:01:53.6]} 45. Kf2 {[%clk 0:00:03.4]} 45... Kf4 {[%clk
0:01:53.9]} 46. Nf5 {[%clk 0:00:02.4]} 46... Bxe4 {[%clk 0:01:47.8]} 47. Nxd6
{[%clk 0:00:02.3]} 47... g3+ {[%clk 0:01:48.1]} 48. Kg1 {[%clk 0:00:02.3]} 48...
Bd5 {[%clk 0:01:46.6]} 0-1

[Event "*** Titled Tuesday Blitz"]
[Site "Chess.com"]
[Date "2020.05.05"]
[Round "9"]
[White "Ladislav1969"]
[Black "tteshan"]
[Result "1-0"]
[WhiteElo "2354"]
[BlackElo "2210"]
[TimeControl "180+1"]
[EndTime "11:46:59 PDT"]
[Termination "Ladislav1969 won by checkmate"]

1. e4 {[%clk 0:03:00.9]} 1... e6 {[%clk 0:02:57.5]} 2. d4 {[%clk 0:03:00.3]}
2... d5 {[%clk 0:02:57]} 3. e5 {[%clk 0:03:01.2]} 3... c5 {[%clk 0:02:56.8]} 4.
c3 {[%clk 0:03:01.9]} 4... Qb6 {[%clk 0:02:56.3]} 5. Nf3 {[%clk 0:03:02]} 5...
Bd7 {[%clk 0:02:55.7]} 6. a3 {[%clk 0:03:01.6]} 6... Bb5 {[%clk 0:02:55.4]} 7.
c4 {[%clk 0:03:01.3]} 7... Bxc4 {[%clk 0:02:49.9]} 8. Bxc4 {[%clk 0:03:00]} 8...
dxc4 {[%clk 0:02:50.8]} 9. d5 {[%clk 0:02:49.2]} 9... exd5 {[%clk 0:02:37.3]}
10. Qxd5 {[%clk 0:02:48.4]} 10... Ne7 {[%clk 0:02:27.9]} 11. Qxc4 {[%clk
0:02:47.3]} 11... Nbc6 {[%clk 0:02:19.3]} 12. Nc3 {[%clk 0:02:45.4]} 12... Nd4
{[%clk 0:01:28.5]} 13. Nxd4 {[%clk 0:02:29.2]} 13... cxd4 {[%clk 0:01:27.9]} 14.
Nb5 {[%clk 0:02:28]} 14... Nc6 {[%clk 0:01:22.6]} 15. O-O {[%clk 0:02:04.8]}
15... a6 {[%clk 0:01:17.7]} 16. Nd6+ {[%clk 0:02:02.1]} 16... Bxd6 {[%clk
0:01:12.8]} 17. exd6 {[%clk 0:02:03]} 17... O-O {[%clk 0:01:12.8]} 18. b4 {[%clk
0:01:54.3]} 18... Rac8 {[%clk 0:01:02.9]} 19. Qd5 {[%clk 0:01:40]} 19... Rfd8
{[%clk 0:01:00]} 20. Bf4 {[%clk 0:01:30.2]} 20... Rd7 {[%clk 0:00:55]} 21. Rfe1
{[%clk 0:01:21.6]} 21... Rcd8 {[%clk 0:00:19.8]} 22. Re4 {[%clk 0:01:21.1]}
22... g6 {[%clk 0:00:18.3]} 23. Rae1 {[%clk 0:01:17.9]} 23... a5 {[%clk
0:00:14.4]} 24. Bh6 {[%clk 0:01:11.3]} 24... Ne7 {[%clk 0:00:05.7]} 25. Rxe7
{[%clk 0:01:06.6]} 25... Rxe7 {[%clk 0:00:04.4]} 26. dxe7 {[%clk 0:01:03.6]}
26... Re8 {[%clk 0:00:02.2]} 27. Qe5 {[%clk 0:00:54.2]} 27... Qc6 {[%clk
0:00:01.4]} 28. Qg7# {[%clk 0:00:52.5]} 1-0

[Event "*** Titled Tuesday Blitz"]
[Site "Chess.com"]
[Date "2020.05.05"]
[Round "9"]
[White "canary2016"]
[Black "827883"]
[Result "0-1"]
[WhiteElo "1921"]
[BlackElo "2223"]
[TimeControl "180+1"]
[EndTime "11:47:07 PDT"]
[Termination "827883 won by checkmate"]

1. Nf3 {[%clk 0:03:00.9]} 1... d5 {[%clk 0:02:59.9]} 2. c4 {[%clk 0:02:59.5]}
2... d4 {[%clk 0:02:59.7]} 3. b4 {[%clk 0:02:57.8]} 3... g5 {[%clk 0:02:59.3]}
4. Bb2 {[%clk 0:02:56.1]} 4... Bg7 {[%clk 0:02:57.9]} 5. Nxg5 {[%clk 0:02:53.5]}
5... e5 {[%clk 0:02:57.2]} 6. Nh3 {[%clk 0:02:49.8]} 6... Ne7 {[%clk 0:02:47.3]}
7. e3 {[%clk 0:02:44.5]} 7... O-O {[%clk 0:02:39.3]} 8. exd4 {[%clk 0:02:43.6]}
8... exd4 {[%clk 0:02:37.3]} 9. Be2 {[%clk 0:02:42.5]} 9... Nbc6 {[%clk
0:02:32]} 10. Nf4 {[%clk 0:02:41.8]} 10... Nxb4 {[%clk 0:02:03.2]} 11. a3 {[%clk
0:02:40.8]} 11... Nbc6 {[%clk 0:01:56.4]} 12. O-O {[%clk 0:02:39.3]} 12... Ng6
{[%clk 0:01:47.7]} 13. Nd3 {[%clk 0:02:29.5]} 13... Re8 {[%clk 0:01:44.2]} 14.
Re1 {[%clk 0:02:28.4]} 14... Bf5 {[%clk 0:01:41.2]} 15. Nb4 {[%clk 0:02:27.1]}
15... d3 {[%clk 0:01:21.5]} 16. Bxg7 {[%clk 0:02:21.1]} 16... dxe2 {[%clk
0:01:21.7]} 17. Rxe2 {[%clk 0:01:54.1]} 17... Kxg7 {[%clk 0:01:19.2]} 18. Nxc6
{[%clk 0:01:46.4]} 18... bxc6 {[%clk 0:01:18.2]} 19. Nc3 {[%clk 0:01:45.7]}
19... Qd3 {[%clk 0:01:13.7]} 20. Rxe8 {[%clk 0:01:37.6]} 20... Rxe8 {[%clk
0:01:14.6]} 21. Rb1 {[%clk 0:01:30.9]} 21... Nf4 {[%clk 0:01:05.8]} 22. Rb7
{[%clk 0:01:25.1]} 22... Qxc4 {[%clk 0:00:44.6]} 23. Rxc7 {[%clk 0:01:24.7]}
23... Ne2+ {[%clk 0:00:42.9]} 24. Nxe2 {[%clk 0:01:21.5]} 24... Rxe2 {[%clk
0:00:43.8]} 25. Qa1+ {[%clk 0:01:18.6]} 25... Kg6 {[%clk 0:00:38.6]} 26. h4
{[%clk 0:01:08]} 26... Qe6 {[%clk 0:00:29]} 27. h5+ {[%clk 0:00:55]} 27... Kxh5
{[%clk 0:00:28.5]} 28. g4+ {[%clk 0:00:49.4]} 28... Bxg4 {[%clk 0:00:24.8]} 29.
Qg7 {[%clk 0:00:36.9]} 29... Re1+ {[%clk 0:00:24.5]} 30. Kg2 {[%clk 0:00:36.9]}
30... Qe4+ {[%clk 0:00:21.8]} 31. f3 {[%clk 0:00:33.3]} 31... Qxf3+ {[%clk
0:00:20.4]} 32. Kh2 {[%clk 0:00:32.6]} 32... Rh1# {[%clk 0:00:18.1]} 0-1

[Event "*** Titled Tuesday Blitz"]
[Site "Chess.com"]
[Date "2020.05.05"]
[Round "9"]
[White "StephenDedalus83"]
[Black "Jbd735"]
[Result "1-0"]
[WhiteElo "2664"]
[BlackElo "2431"]
[TimeControl "180+1"]
[EndTime "11:47:08 PDT"]
[Termination "StephenDedalus83 won by resignation"]

1. e4 {[%clk 0:03:00.9]} 1... e5 {[%clk 0:02:59.6]} 2. Nf3 {[%clk 0:03:00.3]}
2... Nc6 {[%clk 0:02:59.5]} 3. Bb5 {[%clk 0:03:00]} 3... a6 {[%clk 0:02:58.9]}
4. Ba4 {[%clk 0:02:58.4]} 4... Nf6 {[%clk 0:02:58.8]} 5. O-O {[%clk 0:02:59]}
5... Be7 {[%clk 0:02:58.9]} 6. Re1 {[%clk 0:02:58.9]} 6... b5 {[%clk 0:02:59.3]}
7. Bb3 {[%clk 0:02:59.2]} 7... d6 {[%clk 0:02:59.9]} 8. c3 {[%clk 0:02:59.2]}
8... O-O {[%clk 0:02:59.9]} 9. h3 {[%clk 0:02:59.2]} 9... Na5 {[%clk 0:03:00.3]}
10. Bc2 {[%clk 0:02:58.2]} 10... c5 {[%clk 0:03:00.7]} 11. d4 {[%clk 0:02:58.8]}
11... Qc7 {[%clk 0:03:00.7]} 12. Nbd2 {[%clk 0:02:58.6]} 12... Nc6 {[%clk
0:03:00.2]} 13. d5 {[%clk 0:02:58]} 13... Nd8 {[%clk 0:03:00.3]} 14. a4 {[%clk
0:02:57.5]} 14... Rb8 {[%clk 0:03:00.4]} 15. axb5 {[%clk 0:02:56.5]} 15... axb5
{[%clk 0:03:00.2]} 16. b4 {[%clk 0:02:57]} 16... Ne8 {[%clk 0:02:58.3]} 17. Nf1
{[%clk 0:02:56.5]} 17... c4 {[%clk 0:02:57.3]} 18. g4 {[%clk 0:02:54.5]} 18...
g6 {[%clk 0:02:56.7]} 19. Ng3 {[%clk 0:02:54.4]} 19... Ng7 {[%clk 0:02:56.5]}
20. Be3 {[%clk 0:02:53.7]} 20... f6 {[%clk 0:02:55.7]} 21. Qd2 {[%clk
0:02:52.3]} 21... Nf7 {[%clk 0:02:55.5]} 22. Kh2 {[%clk 0:02:45.6]} 22... Bb7
{[%clk 0:02:45.1]} 23. Ra5 {[%clk 0:02:43.7]} 23... Qd7 {[%clk 0:02:41.7]} 24.
Rea1 {[%clk 0:02:40]} 24... Ra8 {[%clk 0:02:41.1]} 25. Ba7 {[%clk 0:02:37.3]}
25... Rfc8 {[%clk 0:02:23.7]} 26. Ne1 {[%clk 0:02:35.6]} 26... Bd8 {[%clk
0:02:22.9]} 27. R5a3 {[%clk 0:02:34.4]} 27... Bc7 {[%clk 0:01:47]} 28. Bb1
{[%clk 0:02:26.2]} 28... Rf8 {[%clk 0:01:44.7]} 29. Ng2 {[%clk 0:02:23.8]} 29...
Qd8 {[%clk 0:01:39.7]} 30. Qe3 {[%clk 0:02:22.6]} 30... Qd7 {[%clk 0:01:38.6]}
31. f3 {[%clk 0:02:21.6]} 31... Qd8 {[%clk 0:01:33.1]} 32. Qf2 {[%clk
0:02:21.1]} 32... Qd7 {[%clk 0:01:33]} 33. Bc2 {[%clk 0:02:17.4]} 33... f5
{[%clk 0:01:31.2]} 34. gxf5 {[%clk 0:02:16]} 34... gxf5 {[%clk 0:01:30.9]} 35.
exf5 {[%clk 0:02:14.8]} 35... Bxd5 {[%clk 0:01:29.2]} 36. Ne3 {[%clk 0:02:14.2]}
36... Bc6 {[%clk 0:01:25]} 37. Ng4 {[%clk 0:02:13.8]} 37... Kh8 {[%clk
0:01:23.2]} 38. f6 {[%clk 0:02:07.9]} 38... Ne8 {[%clk 0:01:17.7]} 39. Bf5
{[%clk 0:02:06.8]} 39... Qd8 {[%clk 0:01:14.6]} 40. Nh5 {[%clk 0:02:06]} 40...
d5 {[%clk 0:01:11.1]} 41. Qh4 {[%clk 0:02:05.7]} 41... Bd7 {[%clk 0:00:49.1]}
42. Bc2 {[%clk 0:01:50.9]} 42... e4+ {[%clk 0:00:48.3]} 43. Kh1 {[%clk
0:01:50.9]} 43... Bxg4 {[%clk 0:00:45.6]} 44. hxg4 {[%clk 0:01:49.4]} 44... Ned6
{[%clk 0:00:20.4]} 45. Bc5 {[%clk 0:01:45.2]} 45... Rxa3 {[%clk 0:00:19.1]} 46.
Rxa3 {[%clk 0:01:44.7]} 46... Rg8 {[%clk 0:00:16.5]} 47. Ng7 {[%clk 0:01:42.5]}
47... Ne8 {[%clk 0:00:08.6]} 48. g5 {[%clk 0:01:41.6]} 48... Nxg7 {[%clk
0:00:06.9]} 49. fxg7+ {[%clk 0:01:40.9]} 49... Rxg7 {[%clk 0:00:07.1]} 50. Bd4
{[%clk 0:01:40.8]} 50... Qxg5 {[%clk 0:00:06]} 51. Ra8+ {[%clk 0:01:38]} 51...
Bd8 {[%clk 0:00:05.3]} 52. Qxg5 {[%clk 0:01:37.9]} 1-0

[Event "*** Titled Tuesday Blitz"]
[Site "Chess.com"]
[Date "2020.05.05"]
[Round "9"]
[White "matiss90"]
[Black "neurisdr"]
[Result "0-1"]
[WhiteElo "2512"]
[BlackElo "2770"]
[TimeControl "180+1"]
[EndTime "11:47:11 PDT"]
[Termination "neurisdr won by resignation"]

1. e4 {[%clk 0:02:55.4]} 1... c5 {[%clk 0:03:00.3]} 2. Nf3 {[%clk 0:02:55.1]}
2... d6 {[%clk 0:03:00.8]} 3. d4 {[%clk 0:02:55.2]} 3... cxd4 {[%clk 0:03:01.7]}
4. Nxd4 {[%clk 0:02:56]} 4... Nf6 {[%clk 0:03:02.1]} 5. Nc3 {[%clk 0:02:56.6]}
5... a6 {[%clk 0:03:02.6]} 6. Bc4 {[%clk 0:02:56.9]} 6... e6 {[%clk 0:03:02.7]}
7. Bb3 {[%clk 0:02:57.1]} 7... Nbd7 {[%clk 0:03:02.7]} 8. Bg5 {[%clk 0:02:57.2]}
8... Nc5 {[%clk 0:03:02.4]} 9. f4 {[%clk 0:02:57.8]} 9... Be7 {[%clk 0:03:02]}
10. Qf3 {[%clk 0:02:57.6]} 10... Qc7 {[%clk 0:03:00.6]} 11. O-O {[%clk
0:02:55.1]} 11... b5 {[%clk 0:02:57.8]} 12. e5 {[%clk 0:02:52.4]} 12... Bb7
{[%clk 0:02:56.7]} 13. Qe2 {[%clk 0:02:52.5]} 13... dxe5 {[%clk 0:02:53.2]} 14.
fxe5 {[%clk 0:02:51.5]} 14... Nfe4 {[%clk 0:02:52.9]} 15. Bxe7 {[%clk
0:02:40.7]} 15... Qxe7 {[%clk 0:02:51.5]} 16. Nxe4 {[%clk 0:02:12.4]} 16... Bxe4
{[%clk 0:02:49.3]} 17. Rf4 {[%clk 0:01:57.1]} 17... Bg6 {[%clk 0:02:48.2]} 18.
c3 {[%clk 0:01:29.1]} 18... Nxb3 {[%clk 0:02:46.8]} 19. axb3 {[%clk 0:01:28.8]}
19... O-O {[%clk 0:02:47.1]} 20. b4 {[%clk 0:01:28.9]} 20... Qc7 {[%clk
0:02:43.9]} 21. g4 {[%clk 0:01:23]} 21... a5 {[%clk 0:02:40.1]} 22. bxa5 {[%clk
0:00:55.8]} 22... Rxa5 {[%clk 0:02:38.8]} 23. Rxa5 {[%clk 0:00:56.7]} 23... Qxa5
{[%clk 0:02:38.7]} 24. Qxb5 {[%clk 0:00:53.8]} 24... Qa7 {[%clk 0:02:35.1]} 25.
h4 {[%clk 0:00:50.3]} 25... Rb8 {[%clk 0:02:33.2]} 26. Qe2 {[%clk 0:00:49.3]}
26... h6 {[%clk 0:02:21.7]} 27. h5 {[%clk 0:00:46.1]} 27... Bh7 {[%clk
0:02:20.8]} 28. Rf2 {[%clk 0:00:43.2]} 28... Rc8 {[%clk 0:02:13.5]} 29. Qf3
{[%clk 0:00:39.7]} 29... Qe7 {[%clk 0:02:11.3]} 30. Qf4 {[%clk 0:00:36.2]} 30...
Rf8 {[%clk 0:02:06.6]} 31. Qg3 {[%clk 0:00:32.9]} 31... Be4 {[%clk 0:02:04.4]}
32. Kh2 {[%clk 0:00:31.4]} 32... Ba8 {[%clk 0:02:02.5]} 33. b4 {[%clk
0:00:30.9]} 33... Qg5 {[%clk 0:02:01.6]} 34. b5 {[%clk 0:00:26.9]} 34... Rc8
{[%clk 0:02:00.8]} 35. b6 {[%clk 0:00:14.4]} 35... Rxc3 {[%clk 0:01:59.6]} 36.
Nf3 {[%clk 0:00:07.4]} 36... Qe3 {[%clk 0:01:56.7]} 37. Kg2 {[%clk 0:00:04.8]}
37... Qxb6 {[%clk 0:01:54]} 38. g5 {[%clk 0:00:04]} 38... hxg5 {[%clk
0:01:36.2]} 39. Kh2 {[%clk 0:00:02.2]} 39... Rxf3 {[%clk 0:01:34.2]} 40. Rxf3
{[%clk 0:00:02.2]} 40... Bxf3 {[%clk 0:01:34.2]} 41. Qxf3 {[%clk 0:00:03.1]}
41... Qd4 {[%clk 0:01:33.1]} 42. Qg3 {[%clk 0:00:02.2]} 42... Qf4 {[%clk
0:01:32.3]} 43. Qxf4 {[%clk 0:00:02.3]} 43... gxf4 {[%clk 0:01:32]} 44. Kg2
{[%clk 0:00:03.2]} 44... f6 {[%clk 0:01:31.6]} 45. exf6 {[%clk 0:00:02.5]} 45...
gxf6 {[%clk 0:01:31.2]} 46. Kf3 {[%clk 0:00:03.4]} 46... e5 {[%clk 0:01:31.4]}
0-1

[Event "*** Titled Tuesday Blitz"]
[Site "Chess.com"]
[Date "2020.05.05"]
[Round "9"]
[White "warmoatmeal"]
[Black "Roenko_Artur"]
[Result "1-0"]
[WhiteElo "2049"]
[BlackElo "2179"]
[TimeControl "180+1"]
[EndTime "11:47:14 PDT"]
[Termination "warmoatmeal won on time"]

1. d4 {[%clk 0:02:09.2]} 1... d5 {[%clk 0:02:56.6]} 2. Bf4 {[%clk 0:02:07.9]}
2... e6 {[%clk 0:02:53.6]} 3. e3 {[%clk 0:02:05.6]} 3... c5 {[%clk 0:02:53.6]}
4. c3 {[%clk 0:02:02.6]} 4... Qb6 {[%clk 0:02:50.6]} 5. Qc2 {[%clk 0:01:58.6]}
5... Bd7 {[%clk 0:02:41.7]} 6. Nd2 {[%clk 0:01:57.8]} 6... Nf6 {[%clk
0:02:27.8]} 7. Ngf3 {[%clk 0:01:53.2]} 7... Be7 {[%clk 0:02:22.8]} 8. Qb3 {[%clk
0:01:50.6]} 8... c4 {[%clk 0:02:17.1]} 9. Qc2 {[%clk 0:01:48.7]} 9... O-O {[%clk
0:02:07.5]} 10. Be2 {[%clk 0:01:44.1]} 10... Nc6 {[%clk 0:01:49.8]} 11. O-O
{[%clk 0:01:40.6]} 11... Nh5 {[%clk 0:01:43.9]} 12. Bg5 {[%clk 0:01:35.6]} 12...
Nf6 {[%clk 0:01:05.8]} 13. h3 {[%clk 0:01:32.6]} 13... Qc7 {[%clk 0:01:05]} 14.
Bf4 {[%clk 0:01:30.9]} 14... Bd6 {[%clk 0:01:05.1]} 15. Bxd6 {[%clk 0:01:30.3]}
15... Qxd6 {[%clk 0:01:04.7]} 16. e4 {[%clk 0:01:31.2]} 16... dxe4 {[%clk
0:00:55.2]} 17. Nxe4 {[%clk 0:01:32.1]} 17... Nxe4 {[%clk 0:00:54.2]} 18. Qxe4
{[%clk 0:01:31.9]} 18... b5 {[%clk 0:00:52.2]} 19. a4 {[%clk 0:01:24.5]} 19...
a6 {[%clk 0:00:48.2]} 20. Rfd1 {[%clk 0:01:24.1]} 20... Ne7 {[%clk 0:00:39.9]}
21. axb5 {[%clk 0:01:20.2]} 21... f5 {[%clk 0:00:38.5]} 22. Qe5 {[%clk
0:01:18.1]} 22... Qxe5 {[%clk 0:00:26.3]} 23. Nxe5 {[%clk 0:01:19]} 23... Bxb5
{[%clk 0:00:25.1]} 24. Bxc4 {[%clk 0:01:17.3]} 24... Nd5 {[%clk 0:00:20]} 25.
Bf1 {[%clk 0:00:57.4]} 25... Rfb8 {[%clk 0:00:18.8]} 26. c4 {[%clk 0:00:56.7]}
26... Nf6 {[%clk 0:00:07.4]} 27. cxb5 {[%clk 0:00:55.4]} 27... axb5 {[%clk
0:00:07.9]} 28. Rxa8 {[%clk 0:00:55.6]} 28... Rxa8 {[%clk 0:00:07.7]} 29. Bxb5
{[%clk 0:00:56.5]} 29... Rb8 {[%clk 0:00:08.3]} 30. Bc4 {[%clk 0:00:52.1]} 30...
Rxb2 {[%clk 0:00:05.9]} 31. Bxe6+ {[%clk 0:00:52.1]} 31... Kf8 {[%clk 0:00:06]}
32. d5 {[%clk 0:00:49.5]} 32... Ne4 {[%clk 0:00:04.3]} 33. d6 {[%clk 0:00:48.5]}
1-0

[Event "*** Titled Tuesday Blitz"]
[Site "Chess.com"]
[Date "2020.05.05"]
[Round "9"]
[White "ChessQueen"]
[Black "WPWPWP-2015"]
[Result "1-0"]
[WhiteElo "2671"]
[BlackElo "2442"]
[TimeControl "180+1"]
[EndTime "11:47:15 PDT"]
[Termination "ChessQueen won on time"]

1. e4 {[%clk 0:03:00.9]} 1... e5 {[%clk 0:02:58]} 2. Nf3 {[%clk 0:02:58.5]} 2...
Nf6 {[%clk 0:02:57.3]} 3. Nxe5 {[%clk 0:02:55.7]} 3... d6 {[%clk 0:02:57.4]} 4.
Nf3 {[%clk 0:02:53.8]} 4... Nxe4 {[%clk 0:02:57.4]} 5. d3 {[%clk 0:02:52.1]}
5... Nf6 {[%clk 0:02:56.9]} 6. d4 {[%clk 0:02:52.3]} 6... d5 {[%clk 0:02:56.8]}
7. Bd3 {[%clk 0:02:49.2]} 7... Bg4 {[%clk 0:02:54.4]} 8. O-O {[%clk 0:02:42.1]}
8... Be7 {[%clk 0:02:54]} 9. h3 {[%clk 0:02:41.5]} 9... Bh5 {[%clk 0:02:45.7]}
10. g4 {[%clk 0:02:41.4]} 10... Bg6 {[%clk 0:02:45.9]} 11. Ne5 {[%clk
0:02:41.6]} 11... Bxd3 {[%clk 0:02:44.3]} 12. Qxd3 {[%clk 0:02:41.3]} 12... O-O
{[%clk 0:02:39.7]} 13. Nc3 {[%clk 0:02:36.9]} 13... c6 {[%clk 0:02:38.9]} 14.
Bf4 {[%clk 0:02:23.2]} 14... Na6 {[%clk 0:02:36.5]} 15. Rae1 {[%clk 0:02:18.1]}
15... Nc7 {[%clk 0:02:34.4]} 16. Bg3 {[%clk 0:02:18]} 16... Ne6 {[%clk
0:02:29.3]} 17. f4 {[%clk 0:02:03.6]} 17... Qb6 {[%clk 0:02:12.1]} 18. f5 {[%clk
0:01:51.3]} 18... Qxd4+ {[%clk 0:01:58.2]} 19. Bf2 {[%clk 0:01:51.4]} 19... Qxd3
{[%clk 0:00:49.8]} 20. Nxd3 {[%clk 0:01:52.3]} 20... Ng5 {[%clk 0:00:49.5]} 21.
Rxe7 {[%clk 0:01:49.7]} 21... Nxh3+ {[%clk 0:00:49.5]} 22. Kg2 {[%clk
0:01:46.3]} 22... Nxf2 {[%clk 0:00:48.3]} 23. Nxf2 {[%clk 0:01:41.9]} 23... d4
{[%clk 0:00:45]} 24. Ncd1 {[%clk 0:01:33.3]} 24... b5 {[%clk 0:00:42.5]} 25. Kf3
{[%clk 0:01:27.2]} 25... Nd5 {[%clk 0:00:36.7]} 26. Re4 {[%clk 0:01:25.5]} 26...
c5 {[%clk 0:00:34.9]} 27. g5 {[%clk 0:01:24.4]} 27... f6 {[%clk 0:00:23]} 28. g6
{[%clk 0:01:22.4]} 28... h6 {[%clk 0:00:13.7]} 29. Rfe1 {[%clk 0:01:20]} 29...
Rfd8 {[%clk 0:00:10.9]} 30. Nd3 {[%clk 0:01:15.7]} 30... c4 {[%clk 0:00:10.5]}
31. Nc5 {[%clk 0:01:15.7]} 31... Nb4 {[%clk 0:00:02.5]} 32. c3 {[%clk
0:00:56.2]} 32... dxc3 {[%clk 0:00:02]} 33. Nxc3 {[%clk 0:00:56.2]} 33... Nd3
{[%clk 0:00:02]} 34. Nxd3 {[%clk 0:00:53.8]} 1-0

[Event "*** Titled Tuesday Blitz"]
[Site "Chess.com"]
[Date "2020.05.05"]
[Round "9"]
[White "Perimir"]
[Black "chessuriel"]
[Result "1-0"]
[WhiteElo "2359"]
[BlackElo "2219"]
[TimeControl "180+1"]
[EndTime "11:47:20 PDT"]
[Termination "Perimir won by resignation"]

1. e4 {[%clk 0:03:00.9]} 1... c5 {[%clk 0:02:59.9]} 2. Nf3 {[%clk 0:03:00]} 2...
e6 {[%clk 0:03:00.1]} 3. Nc3 {[%clk 0:02:59.1]} 3... Nc6 {[%clk 0:02:58.5]} 4.
g3 {[%clk 0:02:56.9]} 4... Qc7 {[%clk 0:02:56.8]} 5. Bg2 {[%clk 0:02:56.9]} 5...
a6 {[%clk 0:02:55.8]} 6. a4 {[%clk 0:02:56.2]} 6... Nf6 {[%clk 0:02:54.5]} 7.
O-O {[%clk 0:02:55.5]} 7... d6 {[%clk 0:02:54.1]} 8. d4 {[%clk 0:02:53.4]} 8...
cxd4 {[%clk 0:02:54.1]} 9. Nxd4 {[%clk 0:02:54.3]} 9... Bd7 {[%clk 0:02:53.6]}
10. h3 {[%clk 0:02:48.9]} 10... Be7 {[%clk 0:02:53]} 11. Kh2 {[%clk 0:02:40.4]}
11... Nxd4 {[%clk 0:02:43.9]} 12. Qxd4 {[%clk 0:02:39.1]} 12... Bc6 {[%clk
0:02:44.2]} 13. a5 {[%clk 0:02:12.7]} 13... h5 {[%clk 0:02:34.2]} 14. Bg5 {[%clk
0:02:09.9]} 14... h4 {[%clk 0:02:18.9]} 15. Bxh4 {[%clk 0:01:30.6]} 15... e5
{[%clk 0:01:40.6]} 16. Qd1 {[%clk 0:01:21.5]} 16... O-O-O {[%clk 0:01:25.1]} 17.
Bxf6 {[%clk 0:01:14.9]} 17... Bxf6 {[%clk 0:01:23.3]} 18. Nd5 {[%clk 0:01:03.1]}
18... Bxd5 {[%clk 0:01:23.2]} 19. Qxd5 {[%clk 0:01:04]} 19... Kb8 {[%clk
0:01:05]} 20. c3 {[%clk 0:01:00.5]} 20... Qe7 {[%clk 0:00:43.7]} 21. Ra4 {[%clk
0:00:57]} 21... Qe6 {[%clk 0:00:41]} 22. Rd1 {[%clk 0:00:54]} 22... g5 {[%clk
0:00:32.7]} 23. Rb4 {[%clk 0:00:38.1]} 23... Qd7 {[%clk 0:00:31.8]} 24. Bf1
{[%clk 0:00:34.5]} 24... Rxh3+ {[%clk 0:00:20.5]} 25. Bxh3 {[%clk 0:00:24.5]}
25... Rh8 {[%clk 0:00:20.2]} 26. g4 {[%clk 0:00:25]} 26... Bd8 {[%clk
0:00:16.6]} 27. Qxd6+ {[%clk 0:00:24.8]} 27... Qxd6 {[%clk 0:00:16]} 28. Rxd6
{[%clk 0:00:25.7]} 1-0